[Event "*** Titled Tuesday Blitz"]
[Site "Chess.com"]
[Date "2020.05.05"]
[Round "1"]
[White "Loiacono_Antonio"]
[Black "swimmerchess"]
[Result "0-1"]
[WhiteElo "2382"]
[BlackElo "2736"]
[TimeControl "180+1"]
[EndTime "10:07:32 PDT"]
[Termination "swimmerchess won on time"]

1. e4 {[%clk 0:03:00.7]} 1... e5 {[%clk 0:02:59.1]} 2. Nf3 {[%clk 0:03:00.4]}
2... Nc6 {[%clk 0:02:59.4]} 3. Nc3 {[%clk 0:02:59.7]} 3... Nf6 {[%clk 0:02:59]}
4. Bb5 {[%clk 0:02:59.8]} 4... Bb4 {[%clk 0:02:58.5]} 5. O-O {[%clk 0:02:59.2]}
5... O-O {[%clk 0:02:57.3]} 6. d3 {[%clk 0:02:59.1]} 6... Bxc3 {[%clk
0:02:55.5]} 7. bxc3 {[%clk 0:02:59.3]} 7... d6 {[%clk 0:02:56.1]} 8. Bxc6 {[%clk
0:02:59.6]} 8... bxc6 {[%clk 0:02:55.6]} 9. h3 {[%clk 0:02:59.9]} 9... Nd7
{[%clk 0:02:48.2]} 10. d4 {[%clk 0:02:52]} 10... f6 {[%clk 0:02:47.1]} 11. Re1
{[%clk 0:02:49.5]} 11... Qe7 {[%clk 0:02:42.3]} 12. Nh2 {[%clk 0:02:46.4]} 12...
c5 {[%clk 0:02:39.3]} 13. Ba3 {[%clk 0:02:41.2]} 13... cxd4 {[%clk 0:02:27.8]}
14. cxd4 {[%clk 0:02:42.1]} 14... Nb6 {[%clk 0:02:17.3]} 15. Qd3 {[%clk
0:02:22.4]} 15... Be6 {[%clk 0:02:11]} 16. d5 {[%clk 0:02:20.9]} 16... Bd7
{[%clk 0:02:06.7]} 17. c4 {[%clk 0:02:14]} 17... f5 {[%clk 0:02:03.6]} 18. f3
{[%clk 0:02:09.5]} 18... fxe4 {[%clk 0:01:56.3]} 19. fxe4 {[%clk 0:02:08.3]}
19... Rad8 {[%clk 0:01:50.7]} 20. Rf1 {[%clk 0:01:57.7]} 20... Bc8 {[%clk
0:01:37.4]} 21. c5 {[%clk 0:01:56.3]} 21... dxc5 {[%clk 0:01:31.5]} 22. Nf3
{[%clk 0:01:28.5]} 22... Rf4 {[%clk 0:01:15.4]} 23. Qc2 {[%clk 0:01:09.3]} 23...
Nd7 {[%clk 0:01:08.1]} 24. Nd2 {[%clk 0:00:54.3]} 24... Rdf8 {[%clk 0:01:03.1]}
25. Rxf4 {[%clk 0:00:53.2]} 25... Rxf4 {[%clk 0:01:02.5]} 26. Rf1 {[%clk
0:00:53.1]} 26... Rxf1+ {[%clk 0:00:57]} 27. Nxf1 {[%clk 0:00:53.3]} 27... Qd6
{[%clk 0:00:53.8]} 28. Ne3 {[%clk 0:00:50.8]} 28... Ba6 {[%clk 0:00:49.3]} 29.
Nf5 {[%clk 0:00:49.7]} 29... Qb6 {[%clk 0:00:44]} 30. Kh2 {[%clk 0:00:32.9]}
30... c4 {[%clk 0:00:37.8]} 31. Qd2 {[%clk 0:00:25.8]} 31... h6 {[%clk
0:00:26.9]} 32. Qe1 {[%clk 0:00:18]} 32... Kh7 {[%clk 0:00:24.9]} 33. Qh4 {[%clk
0:00:14.2]} 33... Qf6 {[%clk 0:00:24.2]} 34. Qg3 {[%clk 0:00:10]} 34... Qg5
{[%clk 0:00:21.4]} 35. Qf2 {[%clk 0:00:08.6]} 35... Nf6 {[%clk 0:00:20.6]} 36.
Ne7 {[%clk 0:00:06.1]} 36... Nxe4 {[%clk 0:00:19.2]} 37. Qf7 {[%clk 0:00:06.2]}
37... Qf4+ {[%clk 0:00:19.2]} 38. Kg1 {[%clk 0:00:05.7]} 38... Qxf7 {[%clk
0:00:18.9]} 0-1

[Event "*** Titled Tuesday Blitz"]
[Site "Chess.com"]
[Date "2020.05.05"]
[Round "1"]
[White "yoolund"]
[Black "martabartel"]
[Result "1/2-1/2"]
[WhiteElo "2589"]
[BlackElo "2277"]
[TimeControl "180+1"]
[EndTime "10:07:32 PDT"]
[Termination "Game drawn by repetition"]

1. d4 {[%clk 0:02:59.7]} 1... Nf6 {[%clk 0:02:58.8]} 2. Bg5 {[%clk 0:02:58.1]}
2... e6 {[%clk 0:02:57.3]} 3. e4 {[%clk 0:02:57.5]} 3... h6 {[%clk 0:02:56.8]}
4. Bxf6 {[%clk 0:02:57.3]} 4... Qxf6 {[%clk 0:02:56.5]} 5. c3 {[%clk 0:02:58.2]}
5... d5 {[%clk 0:02:53.9]} 6. Bd3 {[%clk 0:02:58.4]} 6... Qd8 {[%clk 0:02:48.3]}
7. Nd2 {[%clk 0:02:55.7]} 7... Nd7 {[%clk 0:02:38.4]} 8. Ne2 {[%clk 0:02:54.9]}
8... dxe4 {[%clk 0:02:38.4]} 9. Nxe4 {[%clk 0:02:53.1]} 9... Nf6 {[%clk
0:02:38.3]} 10. N2g3 {[%clk 0:02:52.1]} 10... Be7 {[%clk 0:02:35.5]} 11. O-O
{[%clk 0:02:50.6]} 11... O-O {[%clk 0:02:31.8]} 12. f4 {[%clk 0:02:49.4]} 12...
Qd5 {[%clk 0:02:19.3]} 13. f5 {[%clk 0:02:44.8]} 13... exf5 {[%clk 0:02:15.2]}
14. Nxf5 {[%clk 0:02:33]} 14... Bxf5 {[%clk 0:02:07.6]} 15. Nxf6+ {[%clk
0:02:32.8]} 15... Bxf6 {[%clk 0:02:05.4]} 16. Rxf5 {[%clk 0:02:33.7]} 16... Qd6
{[%clk 0:01:59.8]} 17. Qf3 {[%clk 0:02:32.7]} 17... Rae8 {[%clk 0:01:52.5]} 18.
Rf1 {[%clk 0:02:31.7]} 18... c6 {[%clk 0:01:35.8]} 19. Bc2 {[%clk 0:02:29.9]}
19... Re6 {[%clk 0:01:17.1]} 20. Bb3 {[%clk 0:02:08.3]} 20... Re7 {[%clk
0:01:16.7]} 21. Qg4 {[%clk 0:02:03.7]} 21... Kh8 {[%clk 0:01:08.1]} 22. Bc2
{[%clk 0:02:02.7]} 22... Bg5 {[%clk 0:00:55.6]} 23. h4 {[%clk 0:01:39.7]} 23...
Be3+ {[%clk 0:00:52.4]} 24. Kh1 {[%clk 0:01:39.7]} 24... g6 {[%clk 0:00:50.1]}
25. Rf6 {[%clk 0:01:36.2]} 25... Qd7 {[%clk 0:00:29.8]} 26. Qxd7 {[%clk
0:01:35.4]} 26... Rxd7 {[%clk 0:00:29.7]} 27. Bxg6 {[%clk 0:01:35.5]} 27... Kg7
{[%clk 0:00:23.7]} 28. Bh5 {[%clk 0:01:35.8]} 28... c5 {[%clk 0:00:16.8]} 29.
R6f3 {[%clk 0:01:18.7]} 29... cxd4 {[%clk 0:00:15.1]} 30. cxd4 {[%clk
0:01:19.6]} 30... Bxd4 {[%clk 0:00:15.4]} 31. Rg3+ {[%clk 0:01:18]} 31... Kh8
{[%clk 0:00:14.3]} 32. Rd3 {[%clk 0:01:18]} 32... Rfd8 {[%clk 0:00:13.2]} 33.
Rxf7 {[%clk 0:00:58.9]} 33... Rxf7 {[%clk 0:00:12.9]} 34. Bxf7 {[%clk
0:00:59.8]} 34... Bf6 {[%clk 0:00:12.8]} 35. Rxd8+ {[%clk 0:00:58.4]} 35... Bxd8
{[%clk 0:00:11.8]} 36. g3 {[%clk 0:00:58.4]} 36... Kg7 {[%clk 0:00:12.7]} 37.
Bd5 {[%clk 0:00:57.7]} 37... Bc7 {[%clk 0:00:13.3]} 38. Kg2 {[%clk 0:00:57.4]}
38... b6 {[%clk 0:00:13.5]} 39. Kf3 {[%clk 0:00:57.4]} 39... Kf6 {[%clk
0:00:14.1]} 40. Kg4 {[%clk 0:00:57.3]} 40... Be5 {[%clk 0:00:11.7]} 41. b3
{[%clk 0:00:56.6]} 41... Bc3 {[%clk 0:00:11.2]} 42. Kh5 {[%clk 0:00:55.1]} 42...
Bd2 {[%clk 0:00:10.9]} 43. g4 {[%clk 0:00:54.7]} 43... Be3 {[%clk 0:00:10.7]}
44. Bc4 {[%clk 0:00:49.7]} 44... Bd2 {[%clk 0:00:10.6]} 45. a4 {[%clk
0:00:48.2]} 45... Be3 {[%clk 0:00:10.6]} 46. g5+ {[%clk 0:00:40.6]} 46... hxg5
{[%clk 0:00:10]} 47. hxg5+ {[%clk 0:00:41.1]} 47... Bxg5 {[%clk 0:00:10.1]} 48.
Kg4 {[%clk 0:00:42]} 48... Be3 {[%clk 0:00:10.5]} 49. Kf3 {[%clk 0:00:41.9]}
49... Bc5 {[%clk 0:00:11]} 50. Ke4 {[%clk 0:00:42.1]} 50... a5 {[%clk
0:00:11.5]} 51. Kd5 {[%clk 0:00:42.1]} 51... Be3 {[%clk 0:00:10.9]} 52. Bb5
{[%clk 0:00:41.8]} 52... Bf2 {[%clk 0:00:10.9]} 53. Bc4 {[%clk 0:00:41.2]} 53...
Be3 {[%clk 0:00:11.2]} 54. Bb5 {[%clk 0:00:41]} 54... Bf2 {[%clk 0:00:11.7]} 55.
Bc4 {[%clk 0:00:41.2]} 55... Be3 {[%clk 0:00:11.9]} 1/2-1/2

[Event "*** Titled Tuesday Blitz"]
[Site "Chess.com"]
[Date "2020.05.05"]
[Round "1"]
[White "KNVB"]
[Black "Jadeit90"]
[Result "1/2-1/2"]
[WhiteElo "2767"]
[BlackElo "2409"]
[TimeControl "180+1"]
[EndTime "10:07:33 PDT"]
[Termination "Game drawn by repetition"]

1. d4 {[%clk 0:02:58.8]} 1... g6 {[%clk 0:02:56.4]} 2. c4 {[%clk 0:02:58.4]}
2... Bg7 {[%clk 0:02:50.9]} 3. e4 {[%clk 0:02:58.5]} 3... c5 {[%clk 0:02:51.2]}
4. d5 {[%clk 0:02:57.4]} 4... d6 {[%clk 0:02:51.4]} 5. Nc3 {[%clk 0:02:56.7]}
5... Nf6 {[%clk 0:02:49.7]} 6. Bd3 {[%clk 0:02:56.8]} 6... O-O {[%clk
0:02:46.1]} 7. h3 {[%clk 0:02:55.5]} 7... e6 {[%clk 0:02:46.5]} 8. Nf3 {[%clk
0:02:55.6]} 8... exd5 {[%clk 0:02:46.8]} 9. cxd5 {[%clk 0:02:55.9]} 9... Na6
{[%clk 0:02:47.2]} 10. O-O {[%clk 0:02:55.6]} 10... Nc7 {[%clk 0:02:47.5]} 11.
Re1 {[%clk 0:02:53.2]} 11... Rb8 {[%clk 0:02:47.8]} 12. a4 {[%clk 0:02:51.6]}
12... a6 {[%clk 0:02:48.2]} 13. a5 {[%clk 0:02:42.2]} 13... b5 {[%clk
0:02:48.4]} 14. axb6 {[%clk 0:02:43.1]} 14... Rxb6 {[%clk 0:02:48.8]} 15. Nd2
{[%clk 0:02:32.5]} 15... Rb4 {[%clk 0:02:37.1]} 16. Nc4 {[%clk 0:02:27.7]} 16...
Re8 {[%clk 0:02:34.5]} 17. Bf4 {[%clk 0:02:25.9]} 17... Bf8 {[%clk 0:02:32.2]}
18. Qc2 {[%clk 0:01:35.7]} 18... Nb5 {[%clk 0:02:09.5]} 19. Nxb5 {[%clk
0:01:36]} 19... axb5 {[%clk 0:02:09.2]} 20. Na5 {[%clk 0:01:36.5]} 20... Bd7
{[%clk 0:01:58.7]} 21. Bd2 {[%clk 0:01:35.9]} 21... Ra4 {[%clk 0:01:57.1]} 22.
Rxa4 {[%clk 0:01:33.2]} 22... bxa4 {[%clk 0:01:58]} 23. Nc4 {[%clk 0:01:30.8]}
23... Qb8 {[%clk 0:01:50.5]} 24. Bc3 {[%clk 0:00:57]} 24... Bg7 {[%clk 0:01:46]}
25. Qd2 {[%clk 0:00:53.9]} 25... Bb5 {[%clk 0:01:40.3]} 26. Nxd6 {[%clk
0:00:45.7]} 26... Qxd6 {[%clk 0:01:32.3]} 27. Bxb5 {[%clk 0:00:45.7]} 27... Rxe4
{[%clk 0:01:30.3]} 28. Rd1 {[%clk 0:00:25.4]} 28... Nd7 {[%clk 0:01:18.8]} 29.
Qc2 {[%clk 0:00:21.4]} 29... Re7 {[%clk 0:01:03.5]} 30. Bxa4 {[%clk 0:00:18.1]}
30... Ne5 {[%clk 0:00:59.9]} 31. Bb5 {[%clk 0:00:13.9]} 31... h5 {[%clk
0:00:57.9]} 32. Bf1 {[%clk 0:00:13.8]} 32... Nd7 {[%clk 0:00:56.5]} 33. Bb5
{[%clk 0:00:12.1]} 33... Ne5 {[%clk 0:00:56.3]} 34. Be2 {[%clk 0:00:10.7]} 34...
Nd7 {[%clk 0:00:56]} 35. Qd2 {[%clk 0:00:10.4]} 35... Ne5 {[%clk 0:00:55.2]} 36.
Bf1 {[%clk 0:00:10.5]} 36... Nd7 {[%clk 0:00:55.3]} 37. Ra1 {[%clk 0:00:09.1]}
37... Kh7 {[%clk 0:00:54.5]} 38. Ra6 {[%clk 0:00:08.9]} 38... Qb8 {[%clk
0:00:53.1]} 39. d6 {[%clk 0:00:07]} 39... Re8 {[%clk 0:00:50.4]} 40. Bc4 {[%clk
0:00:06.3]} 40... Ne5 {[%clk 0:00:49.3]} 41. Bxe5 {[%clk 0:00:03.9]} 41... Bxe5
{[%clk 0:00:49.4]} 42. Bxf7 {[%clk 0:00:04.3]} 42... Rf8 {[%clk 0:00:46.5]} 43.
Bc4 {[%clk 0:00:03.3]} 43... Bd4 {[%clk 0:00:43.7]} 44. d7 {[%clk 0:00:01.9]}
44... Rxf2 {[%clk 0:00:36.9]} 45. Qxd4 {[%clk 0:00:01.7]} 45... cxd4 {[%clk
0:00:35.9]} 46. Kxf2 {[%clk 0:00:02.6]} 46... Qf4+ {[%clk 0:00:35]} 47. Ke1
{[%clk 0:00:02.8]} 47... Qc1+ {[%clk 0:00:33.3]} 48. Kf2 {[%clk 0:00:02.7]}
48... Qe3+ {[%clk 0:00:33.4]} 49. Kf1 {[%clk 0:00:02.7]} 49... Qc1+ {[%clk
0:00:31.4]} 50. Kf2 {[%clk 0:00:03.2]} 50... Qe3+ {[%clk 0:00:31.6]} 51. Kf1
{[%clk 0:00:03.8]} 51... Qc1+ {[%clk 0:00:31.8]} 52. Kf2 {[%clk 0:00:01.9]}
1/2-1/2

[Event "*** Titled Tuesday Blitz"]
[Site "Chess.com"]
[Date "2020.05.05"]
[Round "1"]
[White "RAU4ever"]
[Black "BaMBoMaTTo"]
[Result "0-1"]
[WhiteElo "2342"]
[BlackElo "2673"]
[TimeControl "180+1"]
[EndTime "10:07:35 PDT"]
[Termination "BaMBoMaTTo won by resignation"]

1. e4 {[%clk 0:03:00.9]} 1... c5 {[%clk 0:02:59.9]} 2. Nf3 {[%clk 0:03:00.6]}
2... d6 {[%clk 0:03:00.3]} 3. d4 {[%clk 0:03:01]} 3... cxd4 {[%clk 0:03:01.2]}
4. Nxd4 {[%clk 0:03:01.9]} 4... Nf6 {[%clk 0:03:01.6]} 5. Nc3 {[%clk 0:03:02.5]}
5... a6 {[%clk 0:03:02.1]} 6. Be3 {[%clk 0:03:03.2]} 6... e5 {[%clk 0:03:01.6]}
7. Nf3 {[%clk 0:03:03.8]} 7... Qc7 {[%clk 0:02:43.1]} 8. a4 {[%clk 0:03:02.3]}
8... Nc6 {[%clk 0:02:24.4]} 9. Be2 {[%clk 0:02:58.2]} 9... Be7 {[%clk
0:02:20.4]} 10. O-O {[%clk 0:02:55.3]} 10... O-O {[%clk 0:02:20]} 11. Nd5 {[%clk
0:02:55]} 11... Nxd5 {[%clk 0:02:19.9]} 12. exd5 {[%clk 0:02:55.9]} 12... Na5
{[%clk 0:02:12.3]} 13. b3 {[%clk 0:02:24.2]} 13... Bg4 {[%clk 0:01:57.4]} 14. c4
{[%clk 0:02:12]} 14... Bxf3 {[%clk 0:01:48.7]} 15. Bxf3 {[%clk 0:02:11.1]} 15...
b6 {[%clk 0:01:49]} 16. Be2 {[%clk 0:02:05.6]} 16... Nb7 {[%clk 0:01:48.2]} 17.
Rb1 {[%clk 0:01:08.1]} 17... f5 {[%clk 0:01:36.2]} 18. f4 {[%clk 0:01:07.9]}
18... a5 {[%clk 0:01:27.5]} 19. b4 {[%clk 0:01:07]} 19... exf4 {[%clk
0:01:00.9]} 20. Bd4 {[%clk 0:00:45.9]} 20... axb4 {[%clk 0:00:27.2]} 21. Rxb4
{[%clk 0:00:46.8]} 21... Nc5 {[%clk 0:00:27.2]} 22. Rxf4 {[%clk 0:00:43.7]}
22... Bg5 {[%clk 0:00:27.2]} 23. Rf3 {[%clk 0:00:42.4]} 23... Rae8 {[%clk
0:00:22.8]} 24. Bf1 {[%clk 0:00:39.2]} 24... Re4 {[%clk 0:00:22]} 25. Bf2 {[%clk
0:00:36.1]} 25... g6 {[%clk 0:00:11.2]} 26. Qa1 {[%clk 0:00:35.6]} 26... Rfe8
{[%clk 0:00:09.1]} 27. a5 {[%clk 0:00:35.1]} 27... bxa5 {[%clk 0:00:08.7]} 28.
Rb5 {[%clk 0:00:35.5]} 28... Be3 {[%clk 0:00:08.7]} 29. Rxe3 {[%clk 0:00:32]}
29... Rxe3 {[%clk 0:00:09.6]} 30. Bxe3 {[%clk 0:00:32.7]} 30... Rxe3 {[%clk
0:00:10.5]} 31. Qxa5 {[%clk 0:00:33.4]} 31... Qxa5 {[%clk 0:00:10.5]} 32. Rxa5
{[%clk 0:00:34.3]} 32... Ne4 {[%clk 0:00:10.7]} 33. g3 {[%clk 0:00:31.5]} 33...
Re1 {[%clk 0:00:10.3]} 34. Kg2 {[%clk 0:00:31.8]} 34... Rd1 {[%clk 0:00:10.8]}
35. Ra7 {[%clk 0:00:30]} 35... Rd2+ {[%clk 0:00:10.9]} 36. Kg1 {[%clk
0:00:29.4]} 36... h5 {[%clk 0:00:10.1]} 37. Rc7 {[%clk 0:00:28]} 37... g5 {[%clk
0:00:09.8]} 38. Rd7 {[%clk 0:00:25.7]} 38... f4 {[%clk 0:00:06.5]} 39. gxf4
{[%clk 0:00:25.3]} 39... gxf4 {[%clk 0:00:07.4]} 40. Re7 {[%clk 0:00:24.4]}
40... Ng5 {[%clk 0:00:06.1]} 41. Bh3 {[%clk 0:00:22.4]} 41... Nxh3+ {[%clk
0:00:06.1]} 42. Kf1 {[%clk 0:00:23.2]} 42... Ng5 {[%clk 0:00:05.6]} 43. Re6
{[%clk 0:00:24]} 43... Nxe6 {[%clk 0:00:05.8]} 0-1

[Event "*** Titled Tuesday Blitz"]
[Site "Chess.com"]
[Date "2020.05.05"]
[Round "1"]
[White "Marcin"]
[Black "Igrok3069"]
[Result "1-0"]
[WhiteElo "2419"]
[BlackElo "2758"]
[TimeControl "180+1"]
[EndTime "10:07:37 PDT"]
[Termination "Marcin won on time"]

1. d4 {[%clk 0:02:59.2]} 1... d5 {[%clk 0:02:59.3]} 2. c4 {[%clk 0:02:54]} 2...
c6 {[%clk 0:03:00.2]} 3. Nf3 {[%clk 0:02:50.1]} 3... Nf6 {[%clk 0:02:59.2]} 4.
e3 {[%clk 0:02:51]} 4... Bg4 {[%clk 0:02:57.1]} 5. h3 {[%clk 0:02:44.5]} 5...
Bh5 {[%clk 0:02:56.6]} 6. Qb3 {[%clk 0:02:40.5]} 6... Qb6 {[%clk 0:02:55.3]} 7.
g4 {[%clk 0:02:34.1]} 7... Bg6 {[%clk 0:02:53.2]} 8. Ne5 {[%clk 0:02:27.9]} 8...
e6 {[%clk 0:02:46.3]} 9. c5 {[%clk 0:02:12.9]} 9... Qc7 {[%clk 0:02:42.3]} 10.
Nxg6 {[%clk 0:02:08]} 10... hxg6 {[%clk 0:02:41.8]} 11. Bg2 {[%clk 0:02:06.7]}
11... g5 {[%clk 0:02:34.6]} 12. Nc3 {[%clk 0:01:48.1]} 12... Nbd7 {[%clk
0:02:33.5]} 13. e4 {[%clk 0:01:47.1]} 13... e5 {[%clk 0:01:57.6]} 14. exd5
{[%clk 0:01:29.6]} 14... exd4 {[%clk 0:01:56.9]} 15. dxc6 {[%clk 0:01:27.8]}
15... bxc6 {[%clk 0:01:45.1]} 16. Nb5 {[%clk 0:01:25.5]} 16... Qe5+ {[%clk
0:01:41.8]} 17. Kd1 {[%clk 0:01:24.6]} 17... Kd8 {[%clk 0:01:28]} 18. Bxc6
{[%clk 0:01:03.1]} 18... Rb8 {[%clk 0:00:56.3]} 19. Qxf7 {[%clk 0:00:27.1]}
19... Qxc5 {[%clk 0:00:49.8]} 20. Re1 {[%clk 0:00:26.7]} 20... Qxc6 {[%clk
0:00:41.9]} 21. Nxd4 {[%clk 0:00:26.6]} 21... Qd6 {[%clk 0:00:30.4]} 22. Be3
{[%clk 0:00:15.8]} 22... Rxb2 {[%clk 0:00:29.4]} 23. Rc1 {[%clk 0:00:12.6]}
23... Be7 {[%clk 0:00:19.6]} 24. Qc4 {[%clk 0:00:11.6]} 24... Rb8 {[%clk
0:00:16.4]} 25. Re2 {[%clk 0:00:11.6]} 25... Ne5 {[%clk 0:00:15.4]} 26. Qa4
{[%clk 0:00:06.5]} 26... Rxh3 {[%clk 0:00:15]} 27. Rd2 {[%clk 0:00:06.4]} 27...
Rh1+ {[%clk 0:00:13.4]} 28. Ke2 {[%clk 0:00:06.4]} 28... Rxc1 {[%clk 0:00:06.6]}
29. Ne6+ {[%clk 0:00:06.5]} 29... Kc8 {[%clk 0:00:06.9]} 30. Rxd6 {[%clk
0:00:05.4]} 30... Bxd6 {[%clk 0:00:06.9]} 31. Bxc1 {[%clk 0:00:05.4]} 31... Rb4
{[%clk 0:00:05.4]} 32. Qa6+ {[%clk 0:00:05.1]} 32... Kd7 {[%clk 0:00:04.2]} 33.
Nxg5 {[%clk 0:00:02.3]} 33... Re4+ {[%clk 0:00:05.1]} 34. Nxe4 {[%clk
0:00:02.3]} 34... Nxe4 {[%clk 0:00:03.7]} 35. Qb7+ {[%clk 0:00:03]} 35... Bc7
{[%clk 0:00:02.9]} 36. Qxe4 {[%clk 0:00:03.6]} 36... Nc6 {[%clk 0:00:01.9]} 37.
f3 {[%clk 0:00:04.2]} 1-0

[Event "*** Titled Tuesday Blitz"]
[Site "Chess.com"]
[Date "2020.05.05"]
[Round "1"]
[White "heyiampotato"]
[Black "DFeco"]
[Result "1/2-1/2"]
[WhiteElo "2544"]
[BlackElo "2212"]
[TimeControl "180+1"]
[EndTime "10:07:37 PDT"]
[Termination "Game drawn by repetition"]

1. d4 {[%clk 0:02:59.6]} 1... d5 {[%clk 0:02:59.8]} 2. c4 {[%clk 0:02:59.2]}
2... c6 {[%clk 0:02:58.8]} 3. Nf3 {[%clk 0:02:56.9]} 3... Nf6 {[%clk 0:02:59.3]}
4. Nbd2 {[%clk 0:02:57.3]} 4... Bf5 {[%clk 0:02:58.2]} 5. Nh4 {[%clk 0:02:56.6]}
5... Bc8 {[%clk 0:02:52.2]} 6. e3 {[%clk 0:02:49.4]} 6... g6 {[%clk 0:02:47.8]}
7. Be2 {[%clk 0:02:47.2]} 7... Bg7 {[%clk 0:02:47.2]} 8. O-O {[%clk 0:02:46.8]}
8... O-O {[%clk 0:02:47]} 9. Nhf3 {[%clk 0:02:47.5]} 9... Ne4 {[%clk 0:02:43.5]}
10. Nxe4 {[%clk 0:02:29.4]} 10... dxe4 {[%clk 0:02:42.9]} 11. Ng5 {[%clk
0:02:15.1]} 11... f5 {[%clk 0:02:33.2]} 12. f4 {[%clk 0:01:54]} 12... e6 {[%clk
0:02:29.8]} 13. Bd2 {[%clk 0:01:44.5]} 13... h6 {[%clk 0:02:29.6]} 14. Nh3
{[%clk 0:01:44]} 14... g5 {[%clk 0:02:28.6]} 15. Bb4 {[%clk 0:01:33.7]} 15...
Re8 {[%clk 0:02:02.2]} 16. Bh5 {[%clk 0:01:33.4]} 16... g4 {[%clk 0:01:57.4]}
17. Bxe8 {[%clk 0:01:22.1]} 17... Qxe8 {[%clk 0:01:54.6]} 18. Nf2 {[%clk
0:01:19.5]} 18... Na6 {[%clk 0:01:54.2]} 19. Bc3 {[%clk 0:01:18.3]} 19... Bd7
{[%clk 0:01:49.2]} 20. Qb3 {[%clk 0:01:10.1]} 20... Rb8 {[%clk 0:01:40.6]} 21.
Rad1 {[%clk 0:01:06]} 21... b5 {[%clk 0:01:39.3]} 22. d5 {[%clk 0:00:59.7]}
22... Nc5 {[%clk 0:01:19.7]} 23. Qa3 {[%clk 0:00:52.5]} 23... Bf8 {[%clk
0:01:16.5]} 24. Bb4 {[%clk 0:00:41.9]} 24... Na4 {[%clk 0:00:42.2]} 25. Bxf8
{[%clk 0:00:40.5]} 25... Qxf8 {[%clk 0:00:42.5]} 26. Qxf8+ {[%clk 0:00:36.8]}
26... Kxf8 {[%clk 0:00:42.5]} 27. dxc6 {[%clk 0:00:36.5]} 27... Bxc6 {[%clk
0:00:41.4]} 28. Rd6 {[%clk 0:00:35.4]} 28... Be8 {[%clk 0:00:37.4]} 29. cxb5
{[%clk 0:00:30.9]} 29... Bxb5 {[%clk 0:00:35.5]} 30. Rc1 {[%clk 0:00:30.1]}
30... Nxb2 {[%clk 0:00:31.6]} 31. Rxe6 {[%clk 0:00:30]} 31... Nd3 {[%clk
0:00:31.4]} 32. Nxd3 {[%clk 0:00:29.6]} 32... Bxd3 {[%clk 0:00:31.4]} 33. Rxh6
{[%clk 0:00:28.9]} 33... Ke7 {[%clk 0:00:26.9]} 34. Rh7+ {[%clk 0:00:28.3]}
34... Kd6 {[%clk 0:00:24.8]} 35. Rxa7 {[%clk 0:00:29.2]} 35... Rb2 {[%clk
0:00:23.4]} 36. a4 {[%clk 0:00:28.6]} 36... Re2 {[%clk 0:00:19.9]} 37. a5 {[%clk
0:00:28.9]} 37... Rxe3 {[%clk 0:00:20.1]} 38. a6 {[%clk 0:00:29.2]} 38... Re2
{[%clk 0:00:20]} 39. Rg7 {[%clk 0:00:27.1]} 39... Ra2 {[%clk 0:00:19.3]} 40. a7
{[%clk 0:00:26.9]} 40... e3 {[%clk 0:00:19.2]} 41. h3 {[%clk 0:00:14.6]} 41...
Be4 {[%clk 0:00:19]} 42. Rg6+ {[%clk 0:00:10.1]} 42... Kd7 {[%clk 0:00:18]} 43.
Rg7+ {[%clk 0:00:10.1]} 43... Kd6 {[%clk 0:00:18.2]} 44. Rg6+ {[%clk 0:00:10.6]}
44... Kd7 {[%clk 0:00:18.7]} 45. Rg7+ {[%clk 0:00:11.2]} 45... Kd6 {[%clk
0:00:19.2]} 1/2-1/2

[Event "*** Titled Tuesday Blitz"]
[Site "Chess.com"]
[Date "2020.05.05"]
[Round "1"]
[White "Angry_Twin"]
[Black "djano"]
[Result "1-0"]
[WhiteElo "2850"]
[BlackElo "2438"]
[TimeControl "180+1"]
[EndTime "10:07:38 PDT"]
[Termination "Angry_Twin won by resignation"]

1. e4 {[%clk 0:03:00.9]} 1... e5 {[%clk 0:02:58.9]} 2. Nf3 {[%clk 0:03:00.4]}
2... Nc6 {[%clk 0:02:59.3]} 3. Bc4 {[%clk 0:02:58.4]} 3... Nf6 {[%clk 0:02:58]}
4. d3 {[%clk 0:02:58.2]} 4... Be7 {[%clk 0:02:56.2]} 5. c3 {[%clk 0:02:56.6]}
5... O-O {[%clk 0:02:55.9]} 6. O-O {[%clk 0:02:56.9]} 6... d6 {[%clk 0:02:55]}
7. Re1 {[%clk 0:02:54.8]} 7... Kh8 {[%clk 0:02:50.1]} 8. h3 {[%clk 0:02:51.6]}
8... Ng8 {[%clk 0:02:48.8]} 9. d4 {[%clk 0:02:51.8]} 9... Bf6 {[%clk 0:02:45.5]}
10. Be3 {[%clk 0:02:49.4]} 10... Na5 {[%clk 0:02:43.8]} 11. Bf1 {[%clk
0:02:48.5]} 11... Nc6 {[%clk 0:02:28.4]} 12. Nbd2 {[%clk 0:02:45.9]} 12... g6
{[%clk 0:02:27.2]} 13. Nc4 {[%clk 0:02:40.4]} 13... Bg7 {[%clk 0:02:26.9]} 14.
Qb3 {[%clk 0:02:36.4]} 14... Qe7 {[%clk 0:02:25.5]} 15. dxe5 {[%clk 0:02:33.9]}
15... dxe5 {[%clk 0:02:25.2]} 16. Qa3 {[%clk 0:02:33.1]} 16... Qxa3 {[%clk
0:02:22.3]} 17. Nxa3 {[%clk 0:02:34]} 17... Nf6 {[%clk 0:02:21.3]} 18. Nb5
{[%clk 0:02:03.6]} 18... Ne8 {[%clk 0:02:18.8]} 19. Rad1 {[%clk 0:01:57.1]}
19... a6 {[%clk 0:02:18.1]} 20. Na3 {[%clk 0:01:56.9]} 20... f6 {[%clk
0:02:02.8]} 21. Bc5 {[%clk 0:01:52.8]} 21... Rg8 {[%clk 0:02:00.8]} 22. Bc4
{[%clk 0:01:52.1]} 22... b6 {[%clk 0:01:48.7]} 23. Bxg8 {[%clk 0:01:39.6]} 23...
Kxg8 {[%clk 0:01:49.6]} 24. Be3 {[%clk 0:01:38.2]} 24... Be6 {[%clk 0:01:49.8]}
25. b3 {[%clk 0:01:34.3]} 25... Kf7 {[%clk 0:01:49.7]} 26. Nc2 {[%clk
0:01:33.5]} 26... a5 {[%clk 0:01:49]} 27. c4 {[%clk 0:01:30.7]} 27... Bf8 {[%clk
0:01:45]} 28. Nd2 {[%clk 0:01:28.4]} 28... Nb4 {[%clk 0:01:42.4]} 29. Nxb4
{[%clk 0:01:25.2]} 29... axb4 {[%clk 0:01:43.3]} 30. Ra1 {[%clk 0:01:20.8]}
30... c5 {[%clk 0:01:43.6]} 31. a3 {[%clk 0:01:15.2]} 31... bxa3 {[%clk
0:01:43.3]} 32. Nb1 {[%clk 0:01:14.8]} 32... Rd8 {[%clk 0:01:44.2]} 33. Rxa3
{[%clk 0:01:11.6]} 33... Nd6 {[%clk 0:01:43.1]} 34. Ra6 {[%clk 0:01:10.2]} 34...
Nxe4 {[%clk 0:01:40.8]} 35. Rxb6 {[%clk 0:01:08.7]} 35... f5 {[%clk 0:01:39.4]}
36. f3 {[%clk 0:01:05.3]} 36... Nf6 {[%clk 0:01:36.4]} 37. Bg5 {[%clk
0:01:05.3]} 37... Rd3 {[%clk 0:01:29.5]} 38. Na3 {[%clk 0:00:49.6]} 38... Nd7
{[%clk 0:01:26.4]} 39. Rb7 {[%clk 0:00:49.8]} 39... h6 {[%clk 0:01:24.4]} 40.
Bh4 {[%clk 0:00:48.6]} 40... g5 {[%clk 0:01:24.2]} 41. Bf2 {[%clk 0:00:47.8]}
41... Kf6 {[%clk 0:01:24.6]} 42. Nc2 {[%clk 0:00:45.4]} 42... Bd6 {[%clk
0:01:18.5]} 43. Kf1 {[%clk 0:00:43.7]} 43... h5 {[%clk 0:01:18.2]} 44. Ke2
{[%clk 0:00:43.8]} 44... e4 {[%clk 0:01:16.9]} 45. fxe4 {[%clk 0:00:40.8]} 45...
fxe4 {[%clk 0:01:17.8]} 46. Rd1 {[%clk 0:00:39.9]} 46... Ne5 {[%clk 0:01:15.2]}
47. Ne3 {[%clk 0:00:36.1]} 47... g4 {[%clk 0:00:54.8]} 48. Bh4+ {[%clk
0:00:29.6]} 48... Kg6 {[%clk 0:00:54.2]} 49. Rf1 {[%clk 0:00:30.1]} 49... Nf3
{[%clk 0:00:47.4]} 50. gxf3 {[%clk 0:00:19.7]} 50... gxf3+ {[%clk 0:00:48.3]}
51. Kf2 {[%clk 0:00:17.6]} 51... Rd2+ {[%clk 0:00:48.6]} 52. Kg1 {[%clk
0:00:18]} 52... Bxh3 {[%clk 0:00:47]} 53. Rd1 {[%clk 0:00:14.9]} 53... f2+
{[%clk 0:00:43.3]} 54. Bxf2 {[%clk 0:00:14.4]} 54... Rd3 {[%clk 0:00:36]} 55.
Rxd3 {[%clk 0:00:14.1]} 55... exd3 {[%clk 0:00:36.9]} 56. Rb6 {[%clk 0:00:14.9]}
56... d2 {[%clk 0:00:35.2]} 57. Rxd6+ {[%clk 0:00:15]} 1-0